fUSD/lending_fUSD_20241020
["ID","MTS","AMOUNT","RATE_DAILY","PERIOD"]
[340529298,1729416367893,-1300.0,0.00034,30]
[340529299,1729416367918,-1300.0,0.00034,30]
[340529300,1729416367944,-500.0,0.00034,30]
[340529301,1729416367969,-500.0,0.00034,30]
[340529302,1729416367994,-1300.0,0.00034,30]
[340529303,1729416368019,-500.0,0.00034,30]
[340529304,1729416368043,-506.42253905,0.00034,30]
[340529305,1729416368067,-1300.0,0.00034,30]
[340529306,1729416368093,-1300.0,0.00034,30]
[340529307,1729416368119,-500.0,0.00034,30]
[340529308,1729416368144,-500.0,0.00034,30]
[340529309,1729416368169,-500.0,0.00034,30]
[340529310,1729416368194,-500.0,0.00034,30]
[340529311,1729416368220,-500.0,0.00034,30]
[340529312,1729416368245,-246.75893225,0.00034,30]
[340529313,1729416368270,-198.28427946,0.00034,30]
[340529314,1729416368295,-500.0,0.00034,30]
[340529315,1729416368320,-500.0,0.00034,30]
[340529316,1729416368344,-500.0,0.00034,30]
[340529317,1729416368370,-500.0,0.00034,30]
[340529318,1729416368395,-500.0,0.00034,30]
[340529319,1729416368421,-500.0,0.00034,30]
[340529320,1729416368445,-500.0,0.00034,30]
[340529321,1729416368469,-1100.0,0.00034,30]
[340529322,1729416368495,-500.0,0.00034,30]
[340529323,1729416368520,-800.0,0.00034,30]
[340529324,1729416368545,-500.0,0.00034,30]
[340529325,1729416368570,-1100.0,0.00034,30]
[340529326,1729416368594,-500.0,0.00034,30]
[340529327,1729416368620,-500.0,0.00034,30]
[340529328,1729416368644,-800.0,0.00034,30]
[340529329,1729416368669,-500.0,0.00034,30]
[340529330,1729416368693,-1100.0,0.00034,30]
[340529331,1729416368718,-500.0,0.00034,30]
[340529332,1729416368743,-800.0,0.00034,30]
[340529333,1729416368767,-500.0,0.00034,30]
[340529334,1729416368792,-500.0,0.00034,30]
[340529335,1729416368815,-925.91609072,0.00034,30]
[340529336,1729416368840,-1100.0,0.00034,30]
[340529337,1729416368864,-800.0,0.00034,30]
[340529338,1729416368888,-1100.0,0.00034,30]
[340529339,1729416368913,-800.0,0.00034,30]
[340529340,1729416368939,-1100.0,0.00034,30]
[340529341,1729416368964,-800.0,0.00034,30]
[340529342,1729416368987,-500.0,0.00034,30]
[340529343,1729416369012,-1100.0,0.00034,30]
[340529344,1729416369037,-800.0,0.00034,30]
[340529345,1729416369061,-500.0,0.00034,30]
[340529346,1729416369221,-1100.0,0.00034,30]
[340529347,1729416369248,-800.0,0.00034,30]
[340529348,1729416369275,-500.0,0.00034,30]
[340529349,1729416369300,-1100.0,0.00034,30]
[340529350,1729416369326,-800.0,0.00034,30]
[340529351,1729416369352,-500.0,0.00034,30]
[340529352,1729416369378,-1100.0,0.00034,30]
[340529353,1729416369403,-800.0,0.00034,30]
[340529354,1729416369429,-1100.0,0.00034,30]
[340529355,1729416369458,-800.0,0.00034,30]
[340529356,1729416369484,-1100.0,0.00034,30]
[340529357,1729416369508,-800.0,0.00034,30]
[340529358,1729416369534,-1100.0,0.00034,30]
[340529359,1729416369558,-800.0,0.00034,30]
[340529360,1729416369583,-800.0,0.00034,30]
[340529361,1729416369608,-1100.0,0.00034,30]
[340529362,1729416369633,-800.0,0.00034,30]
[340529363,1729416369659,-500.0,0.00034,120]
[340529364,1729416369693,-150.0,0.00034052,120]
[340529365,1729416369718,-2000.0,0.000342,30]
[340529366,1729416369744,-2000.0,0.00034521,60]
[340529367,1729416369769,-151.0,0.00034603,120]
[340529368,1729416369794,-151.41,0.00034696,120]
[340529369,1729416369821,-2000.0,0.00034795,60]
[340529370,1729416369849,-150.63449817,0.00035,30]
[340529371,1729416369873,-950.0,0.00035,120]
[340529372,1729416369898,-2000.0,0.00035068,60]
[340529373,1729416369923,-2000.0,0.00035342,60]
[340529374,1729416369948,-150.0,0.00035453,120]
[340529375,1729416369972,-2000.0,0.00035616,60]
[340529376,1729416370002,-150.0,0.00035697,120]
[340529377,1729416370027,-150.0,0.00035744,120]
[340529378,1729416370051,-575.0017401,0.00036,120]
[340529379,1729416370076,-500.0,0.00036,120]
[340529380,1729416370103,-158.84,0.00036,31]
[340529381,1729416370130,-158.84,0.00036,31]
[340529382,1729416370156,-158.84,0.00036,31]
[340529383,1729416370183,-158.84,0.00036,31]
[340529384,1729416370207,-1039.92,0.00036,30]
[340529385,1729416370232,-150.0,0.00036002,120]
[340529386,1729416370258,-150.0,0.00036353,120]
[340529387,1729416370284,-150.0,0.00036437,120]
[340529388,1729416370309,-150.0,0.00036591,120]
[340529389,1729416370334,-850.0,0.00037,120]
[340529390,1729416370364,-642.81732455,0.000372,103]
[340529391,1729416370390,-642.81732455,0.000372,103]
[340529392,1729416370415,-642.81732455,0.000372,103]
[340529393,1729416370440,-642.81732455,0.000372,103]
[340529394,1729416370465,-642.81732455,0.000372,103]
[340529395,1729416370490,-150.0,0.00037246,120]
[340529396,1729416370515,-2000.0,0.0003726,120]
[340529397,1729416370540,-1000.0,0.0003726,30]
[340529398,1729416370565,-1000.0,0.0003726,30]
[340529399,1729416370591,-2000.0,0.00037534,120]
[340529400,1729416370616,-2000.0,0.00037808,120]
[340529401,1729416370640,-500.0,0.00038,120]
[340529402,1729416370665,-850.28848855,0.00038,120]
[340529403,1729416370691,-1121.11245216,0.00038,120]
[340529404,1729416370717,-2000.0,0.00038082,120]
[340529405,1729416370742,-150.0,0.00038147,120]
[340529406,1729416370768,-2000.0,0.00038356,120]
[340529407,1729416370793,-162.61904172,0.00038356,30]
[340529408,1729416370817,-1458.0,0.000384,30]
[340529409,1729416370840,-171.82581688,0.000384,33]
[340529410,1729416370864,-10000.0,0.000384,120]
[340529411,1729416370888,-150.0,0.00038451,120]
[340529412,1729416370912,-849.68079598,0.000385,120]
[340529413,1729416370936,-150.0,0.00038516,120]
[340529414,1729416370969,-158.84,0.000386,31]
[340529415,1729416370997,-158.84,0.000386,31]
[340529416,1729416371023,-158.84,0.000386,31]
[340529417,1729416371049,-158.84,0.000386,31]
[340529418,1729416371098,-359.57283314,0.00038646,40]
[340529419,1729416371123,-336.68317043,0.00038646,40]
[340529420,1729416371148,-267.64291262,0.00038646,40]
[340529421,1729416371172,-162.61904172,0.00038767,30]
[340529422,1729416371196,-495.37107194,0.0003888,120]
[340529423,1729416371220,-410.08201214,0.000389,30]
[340529424,1729416371246,-150.0,0.00038948,120]
[340529425,1729416371270,-6403.11566846,0.00038999,120]
[340529426,1729416371295,-436.39500077,0.00039,120]
[340529427,1729416371318,-1343.863,0.00039,120]
[340529428,1729416371342,-750.0,0.00039,120]
[340529429,1729416371366,-428.23505144,0.00039,120]
[340529430,1729416371392,-2000.0,0.00039,120]
[340529431,1729416371417,-10000.0,0.00039,120]
[340529432,1729416371446,-900.0,0.00039,40]
[340529433,1729416371470,-162.61904172,0.00039178,30]
[340529434,1729416371496,-151.0,0.00039205,120]
[340529435,1729416371522,-572.47078615,0.000394,30]
[340529436,1729416371546,-204.05515081,0.0003944,120]
[340529437,1729416371570,-172.49288117,0.000395,90]
[340529438,1729416371595,-1217.76200384,0.000395,120]
[340529439,1729416371620,-162.61904172,0.00039589,30]
[340529440,1729416371645,-151.41,0.00039605,120]
[340529441,1729416371670,-239.64257211,0.0003999,120]
[340529442,1729416371699,-50000.0,0.0004,30]
[340529443,1729416371727,-50000.0,0.0004,40]
[340529444,1729416371756,-50000.0,0.0004,50]
[340529445,1729416371782,-151.5,0.0004,120]
[340529446,1729416371806,-258.76999258,0.0004,120]
[340529447,1729416371830,-190.89359734,0.0004,120]
[340529448,1729416371854,-502.88017197,0.0004,30]
[340529449,1729416371878,-491.45959046,0.0004,30]
[340529450,1729416371901,-577.14595218,0.0004,30]
[340529451,1729416371926,-1150.12947363,0.0004,120]
[340529452,1729416371950,-275.76863896,0.0004,120]
[340529453,1729416371973,-1108.38916189,0.0004,60]
[340529454,1729416371998,-1069.37863017,0.0004,120]
[340529455,1729416372022,-500.0,0.0004,120]
[340529456,1729416372046,-150.0,0.0004,120]
[340529457,1729416372069,-1007.98,0.0004,45]
[340529458,1729416372093,-218.68092201,0.0004,120]
[340529459,1729416372117,-978.5570287,0.0004,41]
[340529460,1729416372140,-714.00944136,0.0004,120]
[340529461,1729416372163,-495.38590151,0.0004,120]
[340529462,1729416372187,-200.0,0.0004,120]
[340529463,1729416372212,-1000.0,0.0004,30]
[340529464,1729416372237,-1000.0,0.0004,30]
[340529465,1729416372261,-1500.0,0.0004,120]
[340529466,1729416372285,-150.0,0.0004,30]
[340529467,1729416372314,-260.4,0.0004,120]
[340529468,1729416372338,-166.47505737,0.0004,30]
[340529469,1729416372362,-150.03392615,0.0004,30]
[340529470,1729416372386,-151.79085963,0.0004,30]
[340529471,1729416372411,-1980.39816743,0.0004,120]
[340529472,1729416372435,-850.28848855,0.0004,120]
[340529473,1729416372459,-1121.11245216,0.0004,120]
[340529474,1729416372484,-162.61904172,0.0004,30]
[340529475,1729416372509,-150.0,0.0004,120]
[340529476,1729416372533,-167.424325,0.0004,120]
[340529477,1729416372556,-304.41594219,0.0004,120]
[340529478,1729416372581,-162.61904172,0.00040384,30]
[340529479,1729416372608,-150.0,0.00040848,120]
[340529480,1729416372633,-416.933922,0.000409,30]
[340529481,1729416372658,-846.91464865,0.000409,120]
[340529482,1729416372686,-50000.0,0.00041,31]
[340529483,1729416372714,-50000.0,0.00041,41]
[340529484,1729416372743,-50000.0,0.00041,51]
[340529485,1729416372768,-301.999995,0.00041,120]
[340529486,1729416372792,-701.21991328,0.00041,30]
[340529487,1729416372817,-750.0,0.00041,120]
[340529488,1729416372841,-150.0,0.00041,120]
[340529489,1729416372866,-900.0,0.00041,42]
[340529490,1729416372890,-200.0,0.00041,120]
[340529491,1729416372914,-1709.30390978,0.00041,120]
[340529492,1729416372938,-150.0,0.00041054,120]
[340529493,1729416372962,-505.61082617,0.00041095,60]
[340529494,1729416372985,-500.0,0.00041095,90]
[340529495,1729416373009,-500.0,0.00041095,93]
[340529496,1729416373032,-500.0,0.00041095,96]
[340529497,1729416373056,-500.0,0.00041095,99]
[340529498,1729416373084,-500.0,0.00041095,102]
[340529499,1729416373110,-500.0,0.00041095,105]
[340529500,1729416373133,-500.0,0.00041095,108]
[340529501,1729416373157,-500.0,0.00041095,111]
[340529502,1729416373181,-500.0,0.00041095,114]
[340529503,1729416373206,-500.0,0.00041095,117]
[340529504,1729416373231,-390.22468235,0.00041095,120]
[340529505,1729416373255,-2000.0,0.00041095,30]
[340529506,1729416373278,-2000.0,0.00041095,30]
[340529507,1729416373302,-2000.0,0.00041095,30]
[340529508,1729416373326,-2000.0,0.00041095,30]
[340529509,1729416373352,-2000.0,0.00041095,30]
[340529510,1729416373377,-2000.0,0.00041095,30]
[340529511,1729416373400,-2000.0,0.00041095,30]
[340529512,1729416373425,-2000.0,0.00041095,30]
[340529513,1729416373453,-1070.90293126,0.00041095,30]
[340529514,1729416373477,-517.53486419,0.00041095,30]
[340529515,1729416373502,-2027.6544515,0.00041095,30]
[340529516,1729416373529,-1000.0,0.00041096,120]
[340529517,1729416373553,-600.0,0.00041099,120]
[340529518,1729416373577,-756.0,0.000411,120]
[340529519,1729416373608,-158.84,0.000411,31]
[340529520,1729416373635,-158.84,0.000411,31]
[340529521,1729416373661,-158.84,0.000411,31]
[340529522,1729416373688,-158.84,0.000411,31]
[340529523,1729416373811,-265.2567247,0.00041127,30]
[340529524,1729416373836,-150.0,0.00041164,30]
[340529525,1729416373863,-150.0,0.00041164,30]
[340529526,1729416373888,-265.2567247,0.00041345,30]
[340529527,1729416373915,-500.0,0.00041369,60]
[340529528,1729416373940,-500.0,0.00041369,60]
[340529529,1729416373964,-500.0,0.00041369,60]
[340529530,1729416373989,-150.0,0.00041435,30]
[340529531,1729416374013,-30093.88623252,0.000415,120]
[340529532,1729416374038,-265.2567247,0.00041563,30]
[340529533,1729416374063,-1648.63,0.000417,120]
[340529534,1729416374089,-150.0,0.00041705,30]
[340529535,1729416374114,-265.2567247,0.00041781,30]
[340529536,1729416374139,-150.0,0.0004187,30]
[340529537,1729416374165,-150.0,0.00041976,30]
[340529538,1729416374189,-1000.0,0.00041993,120]
[340529539,1729416374213,-265.2567247,0.00041998,30]
[340529540,1729416374242,-50000.0,0.00042,32]
[340529541,1729416374269,-50000.0,0.00042,42]
[340529542,1729416374297,-50000.0,0.00042,52]
[340529543,1729416374321,-1000.0,0.00042,120]
[340529544,1729416374346,-150.0,0.00042,120]
[340529545,1729416374372,-259.201826,0.00042,120]
[340529546,1729416374398,-500.45,0.00042,120]
[340529547,1729416374423,-900.0,0.00042,43]
[340529548,1729416374447,-200.0,0.00042,120]
[340529549,1729416374476,-150.0,0.00042018,30]
[340529550,1729416374501,-265.2567247,0.00042216,30]
[340529551,1729416374527,-150.0,0.00042246,30]
[340529552,1729416374553,-265.2567247,0.00042434,30]
[340529553,1729416374578,-150.0,0.0004245,120]
[340529554,1729416374603,-500.0,0.00042465,60]
[340529555,1729416374632,-350.36049418,0.00042465,60]
[340529556,1729416374658,-500.0,0.00042465,60]
[340529557,1729416374683,-1458.1237805,0.000425,30]
[340529558,1729416374709,-1263.08634442,0.000425,120]
[340529559,1729416374733,-150.0,0.000425,120]
[340529560,1729416374760,-150.0,0.00042517,30]
[340529561,1729416374785,-753.84948314,0.000426,120]
[340529562,1729416374810,-150.0,0.0004264,30]
[340529563,1729416374835,-265.2567247,0.00042652,30]
[340529564,1729416374861,-4057.0,0.000427,117]
[340529565,1729416374887,-150.0,0.00042787,30]
[340529566,1729416374911,-432.97486204,0.000428,120]
[340529567,1729416374936,-150.0,0.00042811,30]
[340529568,1729416374962,-265.2567247,0.0004287,30]
[340529569,1729416374987,-1000.0,0.00042889,120]
[340529570,1729416375012,-908.27921898,0.00042898,120]
[340529571,1729416375036,-564.02979484,0.000429,30]
[340529572,1729416375062,-220.7006292,0.000429,30]
[340529573,1729416375086,-191.36377282,0.000429,60]
[340529574,1729416375114,-150.0,0.0004293,120]
[340529575,1729416375139,-150.0,0.00042968,30]
[340529576,1729416375167,-50000.0,0.00043,33]
[340529577,1729416375195,-50000.0,0.00043,43]
[340529578,1729416375226,-50000.0,0.00043,53]
[340529579,1729416375252,-360.30102,0.00043,120]
[340529580,1729416375277,-240.20068,0.00043,120]
[340529581,1729416375305,-385.26064932,0.00043,120]
[340529582,1729416375331,-650.0,0.00043,120]
[340529583,1729416375358,-50000.0,0.00043,120]
[340529584,1729416375384,-500.0,0.00043,120]
[340529585,1729416375409,-150.0,0.00043,120]
[340529586,1729416375436,-900.0,0.00043,44]
[340529587,1729416375466,-200.0,0.00043,120]
[340529588,1729416375490,-1002.291,0.00043,120]
[340529589,1729416375515,-6538.0,0.00043,120]
[340529590,1729416375540,-12483.53316848,0.00043,120]
[340529591,1729416375565,-3791.65638962,0.00043,30]
[340529592,1729416375590,-627.05923109,0.00043,40]
[340529593,1729416375615,-1700.5769771,0.00043,120]
[340529594,1729416375641,-2242.22490432,0.00043,120]
[340529595,1729416375666,-30000.0,0.00043,65]
[340529596,1729416375692,-185.95,0.00043014,120]
[340529597,1729416375717,-150.0,0.00043058,30]
[340529598,1729416375742,-169.35897,0.00043088,30]
[340529599,1729416375769,-265.2567247,0.00043088,30]
[340529600,1729416375794,-150.0,0.00043158,30]
[340529601,1729416375820,-150.0,0.00043196,120]
[340529602,1729416375847,-358.89796523,0.000432,30]
[340529603,1729416375872,-169.35897,0.00043288,30]
[340529604,1729416375898,-265.2567247,0.00043306,30]
[340529605,1729416375924,-150.0,0.00043328,30]
[340529606,1729416375949,-150.0,0.00043408,120]
[340529607,1729416375975,-151.0,0.0004344,30]
[340529608,1729416376001,-151.0,0.0004344,30]
[340529609,1729416376026,-151.0,0.0004344,30]
[340529610,1729416376050,-151.0,0.0004344,30]
[340529611,1729416376075,-151.0,0.0004344,30]
[340529612,1729416376300,-151.0,0.0004344,30]
[340529613,1729416376326,-208.0,0.0004344,30]
[340529614,1729416376353,-500.0,0.00043456,60]
[340529615,1729416376379,-181.22525737,0.0004347,120]
[340529616,1729416376405,-169.35897,0.00043488,30]
[340529617,1729416376432,-265.2567247,0.00043524,30]
[340529618,1729416376463,-150.0,0.00043561,120]
[340529619,1729416376488,-500.0,0.00043561,60]
[340529620,1729416376515,-500.0,0.00043561,60]
[340529621,1729416376542,-150.0,0.00043599,30]
[340529622,1729416376571,-158.84,0.000436,36]
[340529623,1729416376599,-158.84,0.000436,36]
[340529624,1729416376627,-158.84,0.000436,36]
[340529625,1729416376653,-169.35897,0.00043688,30]
[340529626,1729416376678,-1027.54251141,0.000437,120]
[340529627,1729416376704,-265.2567247,0.00043742,30]
[340529628,1729416376730,-150.0,0.00043752,30]
[340529629,1729416376755,-1000.0,0.00043786,120]
[340529630,1729416376782,-298.51216268,0.000438,120]
[340529631,1729416376807,-467.65411074,0.000438,30]
[340529632,1729416376832,-151.0,0.00043808,120]
[340529633,1729416376858,-1000.0,0.00043835,120]
[340529634,1729416376884,-1000.0,0.00043835,120]
[340529635,1729416376909,-1000.0,0.00043835,120]
[340529636,1729416376933,-1097.90225554,0.00043835,120]
[340529637,1729416376957,-2000.0,0.00043835,120]
[340529638,1729416376984,-150.0,0.00043869,30]
[340529639,1729416377008,-165.1281,0.00043888,30]
[340529640,1729416377032,-265.2567247,0.0004396,30]
[340529641,1729416377060,-50000.0,0.00044,34]
[340529642,1729416377088,-50000.0,0.00044,44]
[340529643,1729416377117,-50000.0,0.00044,54]
[340529644,1729416377141,-50000.0,0.00044,120]
[340529645,1729416377165,-80591.4719682,0.00044,30]
[340529646,1729416377189,-277.76280656,0.00044,120]
[340529647,1729416377213,-980.76049743,0.00044,120]
[340529648,1729416377238,-1543.74282159,0.00044,120]
[340529649,1729416377262,-500.0,0.00044,120]
[340529650,1729416377287,-150.0,0.00044,120]
[340529651,1729416377311,-9889.88555388,0.00044,120]
[340529652,1729416377336,-200.0,0.00044,120]
[340529653,1729416377363,-100000.0,0.00044,120]
[340529654,1729416377392,-502.442903,0.00044,57]
[340529655,1729416377419,-150.0,0.0004406,120]
[340529656,1729416377444,-169.35897,0.00044088,30]
[340529657,1729416377472,-150.0,0.0004409,120]
[340529658,1729416377499,-150.0,0.0004414,30]
[340529659,1729416377528,-265.2567247,0.00044178,30]
[340529660,1729416377554,-150.0,0.000442,120]
[340529661,1729416377580,-150.0,0.00044234,120]
[340529662,1729416377606,-2000.0,0.00044246,120]
[340529663,1729416377630,-237.74251404,0.00044266,120]
[340529664,1729416377656,-57343.31198887,0.00044266,31]
[340529665,1729416377680,-169.35897,0.00044288,30]
[340529666,1729416377707,-150.0,0.00044297,30]
[340529667,1729416377732,-150.0,0.00044347,120]
[340529668,1729416377759,-150.0,0.00044381,120]
[340529669,1729416377784,-265.2567247,0.00044396,30]
[340529670,1729416377810,-150.0,0.00044411,30]
[340529671,1729416377834,-169.35897,0.00044488,30]
[340529672,1729416377860,-151.41,0.00044515,120]
[340529673,1729416377885,-150.0,0.00044607,30]
[340529674,1729416377910,-265.2567247,0.00044614,30]
[340529675,1729416377935,-2000.0,0.00044657,120]
[340529676,1729416377963,-500.0,0.00044657,120]
[340529677,1729416377989,-500.0,0.00044657,120]
[340529678,1729416378015,-150.0,0.00044661,120]
[340529679,1729416378041,-150.0,0.00044681,30]
[340529680,1729416378067,-1000.0,0.00044682,120]
[340529681,1729416378093,-169.35897,0.00044688,30]
[340529682,1729416378119,-150.0,0.00044693,30]
[340529683,1729416378144,-360.30102,0.000447,120]
[340529684,1729416378172,-240.20068,0.000447,120]
[340529685,1729416378197,-489.896181,0.000448,30]
[340529686,1729416378222,-1460.29947957,0.000448,120]
[340529687,1729416378246,-1104.96837016,0.000448,120]
[340529688,1729416378270,-161.286003,0.000448,30]
[340529689,1729416378294,-1447.34129592,0.000448,60]
[340529690,1729416378320,-265.2567247,0.00044832,30]
[340529691,1729416378346,-208.65116735,0.0004489,120]
[340529692,1729416378370,-344.5289849,0.000449,30]
[340529693,1729416378397,-458.61358263,0.000449,60]
[340529694,1729416378423,-150.0,0.00044952,30]
[340529695,1729416378447,-597.20043959,0.00044987,120]
[340529696,1729416378479,-50000.0,0.00045,35]
[340529697,1729416378506,-50000.0,0.00045,45]
[340529698,1729416378535,-50000.0,0.00045,55]
[340529699,1729416378560,-150.0,0.00045,85]
[340529700,1729416378586,-883.16081629,0.00045,120]
[340529701,1729416378612,-176.79445826,0.00045,30]
[340529702,1729416378637,-287.9500579,0.00045,120]
[340529703,1729416378663,-150.13845994,0.00045,120]
[340529704,1729416378690,-650.0,0.00045,120]
[340529705,1729416378716,-50000.0,0.00045,120]
[340529706,1729416378743,-150.0,0.00045,120]
[340529707,1729416378768,-200.0,0.00045,120]
[340529708,1729416378794,-2000.0,0.00045,120]
[340529709,1729416378820,-2000.0,0.00045,120]
[340529710,1729416378847,-2000.0,0.00045,120]
[340529711,1729416378875,-2411.0,0.00045,120]
[340529712,1729416378902,-2000.0,0.00045,120]
[340529713,1729416378930,-418.19221305,0.00045,120]
[340529714,1729416378957,-604.67,0.00045,30]
[340529715,1729416378983,-200.0,0.00045,120]
[340529716,1729416379010,-150.0,0.00045,30]
[340529717,1729416379036,-1200.0,0.00045,120]
[340529718,1729416379063,-1837.84397684,0.00045,120]
[340529719,1729416379089,-288.53776876,0.00045,120]
[340529720,1729416379118,-9138.0,0.00045,30]
[340529721,1729416379145,-5123.0,0.00045,120]
[340529722,1729416379172,-479.04068962,0.00045,120]
[340529723,1729416379199,-1007.0,0.00045,30]
[340529724,1729416379226,-10000.0,0.00045,120]
[340529725,1729416379251,-30000.0,0.00045,90]
[340529726,1729416379278,-1022.88,0.00045,120]
[340529727,1729416379304,-2971.74,0.00045,120]
[340529728,1729416379331,-265.2567247,0.00045049,30]
[340529729,1729416379357,-2000.0,0.00045068,120]
[340529730,1729416379384,-500.0,0.00045205,120]
[340529731,1729416379411,-500.0,0.00045205,120]
[340529732,1729416379439,-150.0,0.00045222,30]
[340529733,1729416379468,-844.3309579,0.0004526,120]
[340529734,1729416379496,-265.2567247,0.00045267,30]
[340529735,1729416379522,-1237.29775019,0.000453,120]
[340529736,1729416379550,-150.0,0.00045436,30]
[340529737,1729416379576,-2000.0,0.00045479,120]
[340529738,1729416379605,-265.2567247,0.00045485,30]
[340529739,1729416379633,-150.0,0.00045493,30]
[340529740,1729416379661,-615.48032346,0.000455,120]
[340529741,1729416379688,-215.85334512,0.00045563,30]
[340529742,1729416379716,-1000.0,0.00045579,120]
[340529743,1729416379743,-150.0,0.00045634,30]
[340529744,1729416379771,-150.0,0.00045661,120]
[340529745,1729416379797,-265.2567247,0.00045703,30]
[340529746,1729416379825,-150.0,0.00045718,120]
[340529747,1729416379851,-500.0,0.00045753,120]
[340529748,1729416379878,-319.26107723,0.00045753,120]
[340529749,1729416379905,-150.0,0.00045763,30]
[340529750,1729416379931,-150.0,0.00045777,120]
[340529751,1729416379956,-399999.3948828,0.0004588,30]
[340529752,1729416379982,-2000.0,0.0004589,120]
[340529753,1729416380007,-150.0,0.000459,120]
[340529754,1729416380033,-265.2567247,0.00045921,30]
[340529755,1729416380059,-150.0,0.00045957,120]
[340529756,1729416380085,-150.0,0.00045994,120]
[340529757,1729416380115,-50000.0,0.00046,36]
[340529758,1729416380145,-50000.0,0.00046,46]
[340529759,1729416380174,-50000.0,0.00046,56]
[340529760,1729416380199,-269.5,0.00046,96]
[340529761,1729416380225,-1000.0,0.00046,30]
[340529762,1729416380251,-322.62896672,0.00046,120]
[340529763,1729416380277,-1063.78917931,0.00046,30]
[340529764,1729416380302,-1000.0,0.00046,120]
[340529765,1729416380328,-1000.0,0.00046,120]
[340529766,1729416380355,-1000.0,0.00046,120]
[340529767,1729416380381,-1000.0,0.00046,120]
[340529768,1729416380407,-1000.0,0.00046,120]
[340529769,1729416380434,-1000.0,0.00046,120]
[340529770,1729416380461,-1000.0,0.00046,120]
[340529771,1729416380487,-1000.0,0.00046,120]
[340529772,1729416380513,-1000.0,0.00046,120]
[340529773,1729416380538,-1000.0,0.00046,120]
[340529774,1729416380565,-1000.0,0.00046,120]
[340529775,1729416380592,-1000.0,0.00046,120]
[340529776,1729416380624,-1000.0,0.00046,120]
[340529777,1729416380649,-1000.0,0.00046,120]
[340529778,1729416380675,-500.0,0.00046,120]
[340529779,1729416380702,-250.0,0.00046,120]
[340529780,1729416380732,-255.30731811,0.00046,120]
[340529781,1729416380760,-1000.0,0.00046,120]
[340529782,1729416380787,-1000.0,0.00046,120]
[340529783,1729416380813,-1000.0,0.00046,120]
[340529784,1729416380838,-1000.0,0.00046,120]
[340529785,1729416380866,-1000.0,0.00046,120]
[340529786,1729416380892,-1000.0,0.00046,120]
[340529787,1729416380917,-1000.0,0.00046,120]
[340529788,1729416380942,-1000.0,0.00046,120]
[340529789,1729416381461,-1000.0,0.00046,120]
[340529790,1729416381487,-1000.0,0.00046,120]
[340529791,1729416381513,-1000.0,0.00046,120]
[340529792,1729416381538,-1000.0,0.00046,120]
[340529793,1729416381563,-250.0,0.00046,120]
[340529794,1729416381587,-264.02310313,0.00046,120]
[340529795,1729416381613,-50000.0,0.00046,120]
[340529796,1729416381639,-1000.0,0.00046,120]
[340529797,1729416381664,-150.0,0.00046,120]